[Event "*** Titled Tuesday Blitz"]
[Site "Chess.com"]
[Date "2019.10.01"]
[Round "1"]
[White "babero_gordo"]
[Black "Shubinkirill2003"]
[Result "0-1"]
[WhiteElo "2102"]
[BlackElo "2535"]
[TimeControl "180+2"]
[EndTime "13:08:47 PDT"]
[Termination "Shubinkirill2003 won by resignation"]

1. e4 {[%clk 0:02:58.9]} 1... e6 {[%clk 0:03:00.5]} 2. d4 {[%clk 0:02:57]} 2...
d5 {[%clk 0:03:00.9]} 3. Nd2 {[%clk 0:02:57.4]} 3... Be7 {[%clk 0:03:00.5]} 4.
Ngf3 {[%clk 0:02:57]} 4... Nf6 {[%clk 0:03:00.8]} 5. e5 {[%clk 0:02:56.6]} 5...
Nfd7 {[%clk 0:03:01.6]} 6. c3 {[%clk 0:02:56.3]} 6... c5 {[%clk 0:03:01]} 7. Bd3
{[%clk 0:02:56.6]} 7... Nc6 {[%clk 0:03:01.2]} 8. O-O {[%clk 0:02:56]} 8... h5
{[%clk 0:03:01.4]} 9. Qe2 {[%clk 0:02:44]} 9... g5 {[%clk 0:02:49.8]} 10. Qe3
{[%clk 0:02:37]} 10... g4 {[%clk 0:02:36.3]} 11. Ne1 {[%clk 0:02:37.5]} 11...
Qb6 {[%clk 0:02:33]} 12. Nc2 {[%clk 0:02:28.9]} 12... cxd4 {[%clk 0:02:29.5]}
13. cxd4 {[%clk 0:02:29.1]} 13... h4 {[%clk 0:02:24]} 14. f4 {[%clk 0:02:17]}
14... Nf8 {[%clk 0:02:19.2]} 15. Kh1 {[%clk 0:02:08.6]} 15... Bd7 {[%clk
0:02:16.3]} 16. Nb3 {[%clk 0:01:58.9]} 16... O-O-O {[%clk 0:02:10.2]} 17. Bd2
{[%clk 0:02:00.1]} 17... Kb8 {[%clk 0:02:00.6]} 18. Nc5 {[%clk 0:01:44.2]} 18...
Bc8 {[%clk 0:01:17]} 19. b4 {[%clk 0:01:19.7]} 19... Nd7 {[%clk 0:01:06.5]} 20.
a4 {[%clk 0:01:14.4]} 20... Nxc5 {[%clk 0:00:52.4]} 21. bxc5 {[%clk 0:01:16.3]}
21... Qc7 {[%clk 0:00:47.5]} 22. Rfb1 {[%clk 0:01:17.2]} 22... Ka8 {[%clk
0:00:46.5]} 23. Nb4 {[%clk 0:01:13.8]} 23... Bd7 {[%clk 0:00:46.3]} 24. a5
{[%clk 0:01:12.1]} 24... Rb8 {[%clk 0:00:36.6]} 25. f5 {[%clk 0:00:42.4]} 25...
Rhc8 {[%clk 0:00:28.5]} 26. f6 {[%clk 0:00:42.1]} 26... Bf8 {[%clk 0:00:29.1]}
27. Nxc6 {[%clk 0:00:37.4]} 27... Bxc6 {[%clk 0:00:29.1]} 28. Rb2 {[%clk
0:00:38.8]} 28... h3 {[%clk 0:00:27.3]} 29. g3 {[%clk 0:00:39]} 29... Bxc5
{[%clk 0:00:27.2]} 30. Qf4 {[%clk 0:00:26.2]} 30... Bf8 {[%clk 0:00:22.5]} 31.
Rab1 {[%clk 0:00:26.7]} 31... Ba4 {[%clk 0:00:19.6]} 32. Qxg4 {[%clk 0:00:23.7]}
32... a6 {[%clk 0:00:19.6]} 33. Qxh3 {[%clk 0:00:23.7]} 33... Qc6 {[%clk
0:00:20.1]} 34. Qf1 {[%clk 0:00:24]} 34... Bb5 {[%clk 0:00:13.9]} 35. Bxb5
{[%clk 0:00:23.9]} 35... axb5 {[%clk 0:00:14.4]} 36. Rxb5 {[%clk 0:00:25.4]}
36... Qc2 {[%clk 0:00:14.3]} 37. a6 {[%clk 0:00:25.2]} 37... b6 {[%clk
0:00:14.2]} 38. Be3 {[%clk 0:00:11.7]} 38... Qe4+ {[%clk 0:00:14.3]} 39. Qg2
{[%clk 0:00:09.8]} 39... Qxe3 {[%clk 0:00:15.5]} 40. Rxb6 {[%clk 0:00:10.3]}
40... Rxb6 {[%clk 0:00:16]} 41. Rxb6 {[%clk 0:00:12.2]} 41... Rc1+ {[%clk
0:00:16.5]} 0-1

[Event "*** Titled Tuesday Blitz"]
[Site "Chess.com"]
[Date "2019.10.01"]
[Round "1"]
[White "j_coca"]
[Black "Sashadav97"]
[Result "0-1"]
[WhiteElo "2088"]
[BlackElo "2534"]
[TimeControl "180+2"]
[EndTime "13:08:52 PDT"]
[Termination "Sashadav97 won by checkmate"]

1. f4 {[%clk 0:02:57.3]} 1... Nh6 {[%clk 0:02:59.4]} 2. Nf3 {[%clk 0:02:56.6]}
2... d5 {[%clk 0:03:00.3]} 3. d4 {[%clk 0:02:56.9]} 3... g6 {[%clk 0:02:59.7]}
4. e3 {[%clk 0:02:55.6]} 4... Bg7 {[%clk 0:02:58.9]} 5. Bd3 {[%clk 0:02:56.5]}
5... Bf5 {[%clk 0:02:58.5]} 6. O-O {[%clk 0:02:56.9]} 6... O-O {[%clk
0:02:59.3]} 7. c3 {[%clk 0:02:58]} 7... Nd7 {[%clk 0:02:57.4]} 8. Qc2 {[%clk
0:02:53.6]} 8... c5 {[%clk 0:02:54.9]} 9. Qe2 {[%clk 0:02:40.7]} 9... Rc8 {[%clk
0:02:52.1]} 10. Nbd2 {[%clk 0:02:41.2]} 10... Nf6 {[%clk 0:02:40.6]} 11. Ne5
{[%clk 0:02:37.8]} 11... Bxd3 {[%clk 0:02:33.2]} 12. Qxd3 {[%clk 0:02:30.6]}
12... Nf5 {[%clk 0:02:34.3]} 13. Ndf3 {[%clk 0:02:25.7]} 13... c4 {[%clk
0:02:27.7]} 14. Qe2 {[%clk 0:02:22.5]} 14... Ne4 {[%clk 0:02:27.7]} 15. Nd2
{[%clk 0:02:19.8]} 15... Nfd6 {[%clk 0:02:24.7]} 16. Nef3 {[%clk 0:02:20.2]}
16... b5 {[%clk 0:02:21.7]} 17. a3 {[%clk 0:02:15.2]} 17... a5 {[%clk
0:02:21.4]} 18. Nxe4 {[%clk 0:02:08.2]} 18... Nxe4 {[%clk 0:02:20]} 19. Nd2
{[%clk 0:02:09.3]} 19... f5 {[%clk 0:02:10.5]} 20. Nxe4 {[%clk 0:02:08.2]} 20...
dxe4 {[%clk 0:02:12.4]} 21. Bd2 {[%clk 0:02:09.3]} 21... Qd5 {[%clk 0:02:12.3]}
22. a4 {[%clk 0:02:03.1]} 22... Rb8 {[%clk 0:02:11.8]} 23. axb5 {[%clk
0:02:04.2]} 23... Rxb5 {[%clk 0:02:13.7]} 24. Ra2 {[%clk 0:02:05.5]} 24... Rfb8
{[%clk 0:02:12.6]} 25. Rb1 {[%clk 0:02:06.3]} 25... e6 {[%clk 0:02:02.1]} 26.
Bc1 {[%clk 0:02:06.7]} 26... Qc6 {[%clk 0:01:51]} 27. Rba1 {[%clk 0:02:03.6]}
27... Qc7 {[%clk 0:01:43.6]} 28. Ra4 {[%clk 0:02:03.4]} 28... Rc8 {[%clk
0:01:45.1]} 29. Qc2 {[%clk 0:01:52.9]} 29... h6 {[%clk 0:01:38.8]} 30. g3 {[%clk
0:01:47.9]} 30... Kh8 {[%clk 0:01:38.7]} 31. R1a2 {[%clk 0:01:42.1]} 31... Bf6
{[%clk 0:01:38.4]} 32. Qe2 {[%clk 0:01:34.3]} 32... Kh7 {[%clk 0:01:35.3]} 33.
g4 {[%clk 0:01:32.5]} 33... g5 {[%clk 0:01:32.1]} 34. Kg2 {[%clk 0:01:17.7]}
34... Qc6 {[%clk 0:01:08.4]} 35. Rxa5 {[%clk 0:01:11.8]} 35... Rxa5 {[%clk
0:00:55.7]} 36. Rxa5 {[%clk 0:01:13.7]} 36... gxf4 {[%clk 0:00:55.8]} 37. exf4
{[%clk 0:01:12.6]} 37... fxg4 {[%clk 0:00:57.2]} 38. Rc5 {[%clk 0:01:08.5]}
38... Qb7 {[%clk 0:00:51.3]} 39. Rxc8 {[%clk 0:01:03]} 39... e3+ {[%clk
0:00:52.2]} 40. Kg3 {[%clk 0:01:01.4]} 40... h5 {[%clk 0:00:37.6]} 41. Rc5
{[%clk 0:00:56]} 41... Kg6 {[%clk 0:00:26.3]} 42. Bxe3 {[%clk 0:00:50.1]} 42...
Qh1 {[%clk 0:00:21.4]} 43. Qc2+ {[%clk 0:00:45.7]} 43... Kg7 {[%clk 0:00:19.3]}
44. Rc7+ {[%clk 0:00:45.6]} 44... Kf8 {[%clk 0:00:20.6]} 45. Qf2 {[%clk
0:00:20.1]} 45... Qe4 {[%clk 0:00:17.6]} 46. f5 {[%clk 0:00:16.5]} 46... h4#
{[%clk 0:00:16.5]} 0-1

[Event "*** Titled Tuesday Blitz"]
[Site "Chess.com"]
[Date "2019.10.01"]
[Round "1"]
[White "GMKrikor"]
[Black "Zarikovs1999"]
[Result "1-0"]
[WhiteElo "2794"]
[BlackElo "2413"]
[TimeControl "180+2"]
[EndTime "13:08:55 PDT"]
[Termination "GMKrikor won by resignation"]

1. e4 {[%clk 0:02:47.1]} 1... c5 {[%clk 0:03:00.3]} 2. Nf3 {[%clk 0:02:43.8]}
2... Nf6 {[%clk 0:03:01.5]} 3. Nc3 {[%clk 0:02:34.5]} 3... d5 {[%clk 0:03:02.5]}
4. exd5 {[%clk 0:02:33.5]} 4... Nxd5 {[%clk 0:03:04.4]} 5. Bb5+ {[%clk
0:02:34.3]} 5... Bd7 {[%clk 0:03:04.9]} 6. Ne5 {[%clk 0:02:34.6]} 6... Bxb5
{[%clk 0:03:04.7]} 7. Qf3 {[%clk 0:01:24.4]} 7... f6 {[%clk 0:03:04.8]} 8. Nxb5
{[%clk 0:01:25.6]} 8... fxe5 {[%clk 0:03:05.5]} 9. Qxd5 {[%clk 0:01:26.7]} 9...
Qxd5 {[%clk 0:03:07.4]} 10. Nc7+ {[%clk 0:01:28]} 10... Kd7 {[%clk 0:03:09.3]}
11. Nxd5 {[%clk 0:01:29.9]} 11... Nc6 {[%clk 0:03:08.9]} 12. d3 {[%clk
0:01:28.8]} 12... e6 {[%clk 0:03:08.8]} 13. Nc3 {[%clk 0:01:26.7]} 13... Nd4
{[%clk 0:03:06.1]} 14. Kd1 {[%clk 0:01:27.5]} 14... Bd6 {[%clk 0:03:04.8]} 15.
Ne4 {[%clk 0:01:28.7]} 15... Rhf8 {[%clk 0:03:05.5]} 16. c3 {[%clk 0:01:29.8]}
16... Nc6 {[%clk 0:02:58.9]} 17. Be3 {[%clk 0:01:28.4]} 17... b6 {[%clk
0:02:58.1]} 18. Ke2 {[%clk 0:01:27.4]} 18... Ne7 {[%clk 0:02:59.2]} 19. g3
{[%clk 0:01:07.7]} 19... Nd5 {[%clk 0:02:49.6]} 20. Rad1 {[%clk 0:01:06]} 20...
Ke7 {[%clk 0:02:39.8]} 21. Rhf1 {[%clk 0:01:06.3]} 21... h6 {[%clk 0:02:38.2]}
22. h4 {[%clk 0:01:06.3]} 22... Rad8 {[%clk 0:02:34.9]} 23. Bd2 {[%clk 0:00:58]}
23... Nf6 {[%clk 0:02:31.6]} 24. f3 {[%clk 0:00:57.4]} 24... Nxe4 {[%clk
0:02:26.4]} 25. dxe4 {[%clk 0:00:59.3]} 25... c4 {[%clk 0:02:16.2]} 26. Be3
{[%clk 0:00:59.6]} 26... Bb8 {[%clk 0:02:11]} 27. a4 {[%clk 0:00:47.3]} 27...
Rxd1 {[%clk 0:02:03.9]} 28. Rxd1 {[%clk 0:00:44.8]} 28... Rd8 {[%clk 0:02:05.8]}
29. Ra1 {[%clk 0:00:31.6]} 29... Kd7 {[%clk 0:01:25.1]} 30. a5 {[%clk
0:00:32.4]} 30... b5 {[%clk 0:01:22.5]} 31. a6 {[%clk 0:00:34]} 31... Kc6 {[%clk
0:01:21.1]} 32. f4 {[%clk 0:00:25.2]} 32... exf4 {[%clk 0:01:08.3]} 33. gxf4
{[%clk 0:00:25.9]} 33... Rf8 {[%clk 0:01:05.1]} 34. e5 {[%clk 0:00:26.6]} 34...
Rf7 {[%clk 0:00:35]} 35. Rg1 {[%clk 0:00:26]} 35... Bc7 {[%clk 0:00:25.5]} 36.
Bxa7 {[%clk 0:00:24.7]} 36... Bxe5 {[%clk 0:00:26]} 37. Be3 {[%clk 0:00:11.9]}
37... Bxf4 {[%clk 0:00:17.3]} 38. Bxf4 {[%clk 0:00:13.8]} 38... Rxf4 {[%clk
0:00:19.1]} 39. Rxg7 {[%clk 0:00:15.3]} 39... Rf8 {[%clk 0:00:08.9]} 40. Ke3
{[%clk 0:00:16.8]} 40... Kd5 {[%clk 0:00:09.9]} 41. a7 {[%clk 0:00:17.3]} 41...
Ke5 {[%clk 0:00:08.6]} 42. Rb7 {[%clk 0:00:18]} 42... Ra8 {[%clk 0:00:09]} 43.
Rxb5+ {[%clk 0:00:19.2]} 43... Kf6 {[%clk 0:00:10.4]} 44. Ra5 {[%clk 0:00:20.4]}
44... e5 {[%clk 0:00:11.4]} 45. Ke4 {[%clk 0:00:21.8]} 45... h5 {[%clk
0:00:10.9]} 46. Ra6+ {[%clk 0:00:23.1]} 46... Kf7 {[%clk 0:00:11.6]} 47. Kxe5
{[%clk 0:00:25]} 1-0

[Event "*** Titled Tuesday Blitz"]
[Site "Chess.com"]
[Date "2019.10.01"]
[Round "1"]
[White "DeGrootteZ"]
[Black "Torrentec"]
[Result "1/2-1/2"]
[WhiteElo "2680"]
[BlackElo "2336"]
[TimeControl "180+2"]
[EndTime "13:09:08 PDT"]
[Termination "Game drawn by agreement"]

1. e4 {[%clk 0:03:01.9]} 1... e5 {[%clk 0:03:00.3]} 2. Nf3 {[%clk 0:03:02.4]}
2... Nc6 {[%clk 0:03:01.1]} 3. Bc4 {[%clk 0:03:03.9]} 3... Bc5 {[%clk 0:03:02]}
4. c3 {[%clk 0:03:04.3]} 4... Nf6 {[%clk 0:03:01.9]} 5. d3 {[%clk 0:03:05.6]}
5... a6 {[%clk 0:03:02.6]} 6. Nbd2 {[%clk 0:03:05.9]} 6... Ba7 {[%clk
0:03:03.5]} 7. h3 {[%clk 0:03:05.9]} 7... d6 {[%clk 0:03:03.4]} 8. Bb3 {[%clk
0:03:07.2]} 8... Be6 {[%clk 0:03:03.2]} 9. O-O {[%clk 0:03:06.1]} 9... h6 {[%clk
0:03:02.2]} 10. Bxe6 {[%clk 0:03:02.8]} 10... fxe6 {[%clk 0:03:03.1]} 11. Re1
{[%clk 0:02:58.8]} 11... O-O {[%clk 0:03:03.5]} 12. Nf1 {[%clk 0:02:57.8]} 12...
Qe8 {[%clk 0:03:02.7]} 13. Be3 {[%clk 0:02:56.4]} 13... Nh5 {[%clk 0:03:02.6]}
14. d4 {[%clk 0:02:52.6]} 14... Nf4 {[%clk 0:03:00.2]} 15. Ng3 {[%clk
0:02:46.9]} 15... Qf7 {[%clk 0:02:56.8]} 16. a4 {[%clk 0:02:39.5]} 16... Nxh3+
{[%clk 0:02:51.2]} 17. gxh3 {[%clk 0:02:40.6]} 17... Qxf3 {[%clk 0:02:52]} 18.
Qxf3 {[%clk 0:02:42.5]} 18... Rxf3 {[%clk 0:02:53.7]} 19. Kg2 {[%clk 0:02:43.1]}
19... Rf7 {[%clk 0:02:53.4]} 20. Rad1 {[%clk 0:02:33.6]} 20... Raf8 {[%clk
0:02:46.8]} 21. Re2 {[%clk 0:02:31.6]} 21... exd4 {[%clk 0:02:41.9]} 22. cxd4
{[%clk 0:02:33.5]} 22... e5 {[%clk 0:02:21.6]} 23. Nf5 {[%clk 0:02:26.1]} 23...
Nxd4 {[%clk 0:02:18.6]} 24. Nxd4 {[%clk 0:02:28]} 24... Bxd4 {[%clk 0:02:19]}
25. Bxd4 {[%clk 0:02:29.9]} 25... exd4 {[%clk 0:02:20.2]} 26. Rxd4 {[%clk
0:02:31.8]} 26... Rf3 {[%clk 0:02:12.7]} 27. Rc2 {[%clk 0:02:26.4]} 27... R8f7
{[%clk 0:02:08.5]} 28. Rdc4 {[%clk 0:02:23.8]} 28... Rb3 {[%clk 0:02:00.6]} 29.
Rxc7 {[%clk 0:02:14.7]} 29... Rxc7 {[%clk 0:02:00.6]} 30. Rxc7 {[%clk
0:02:16.6]} 30... Rxb2 {[%clk 0:02:01]} 31. Rd7 {[%clk 0:02:09.6]} 31... Rb4
{[%clk 0:01:44.7]} 32. f3 {[%clk 0:02:09.4]} 32... Rxa4 {[%clk 0:01:45]} 33.
Rxb7 {[%clk 0:02:10.7]} 33... Rd4 {[%clk 0:01:43.4]} 34. Ra7 {[%clk 0:02:10.2]}
34... Ra4 {[%clk 0:01:37.4]} 35. Kg3 {[%clk 0:02:10.5]} 35... g5 {[%clk
0:01:33.7]} 36. Rd7 {[%clk 0:02:08.2]} 36... Rd4 {[%clk 0:01:33.1]} 37. Kf2
{[%clk 0:02:07.7]} 37... Kf8 {[%clk 0:01:30.8]} 38. Ke3 {[%clk 0:02:02]} 38...
Rd1 {[%clk 0:01:31.7]} 39. Rh7 {[%clk 0:02:01.4]} 39... a5 {[%clk 0:01:27.3]}
40. Rxh6 {[%clk 0:01:42.5]} 40... a4 {[%clk 0:01:03.2]} 41. Rh8+ {[%clk
0:01:28.5]} 41... Kg7 {[%clk 0:00:57.8]} 42. Ra8 {[%clk 0:01:30.4]} 42... Ra1
{[%clk 0:00:58.5]} 43. Ra6 {[%clk 0:01:29]} 43... a3 {[%clk 0:00:57]} 44. Kf2
{[%clk 0:01:23.6]} 44... a2 {[%clk 0:00:46.6]} 45. Kg2 {[%clk 0:01:23.5]} 45...
Kf7 {[%clk 0:00:46.8]} 46. Kh2 {[%clk 0:01:18.5]} 46... Ke6 {[%clk 0:00:47.7]}
47. Ra5 {[%clk 0:01:18.8]} 47... Rf1 {[%clk 0:00:43.8]} 48. Rxa2 {[%clk
0:01:15.1]} 48... Rxf3 {[%clk 0:00:42.7]} 49. Ra5 {[%clk 0:01:15.9]} 49... Kf6
{[%clk 0:00:43.7]} 50. Rd5 {[%clk 0:01:15.7]} 50... Re3 {[%clk 0:00:33.3]} 51.
Rxd6+ {[%clk 0:01:16.6]} 51... Ke5 {[%clk 0:00:33.7]} 52. Rd5+ {[%clk
0:01:16.7]} 52... Kf6 {[%clk 0:00:26.3]} 53. Rf5+ {[%clk 0:01:16.2]} 53... Kg6
{[%clk 0:00:26.8]} 54. Re5 {[%clk 0:01:17.7]} 54... Kf6 {[%clk 0:00:27.8]} 55.
Re8 {[%clk 0:01:17.3]} 55... Kf7 {[%clk 0:00:29]} 56. Re5 {[%clk 0:01:16.1]}
56... Kf6 {[%clk 0:00:30.1]} 57. Rf5+ {[%clk 0:01:12.8]} 57... Kg6 {[%clk
0:00:30.4]} 1/2-1/2

[Event "*** Titled Tuesday Blitz"]
[Site "Chess.com"]
[Date "2019.10.01"]
[Round "1"]
[White "Playgood28"]
[Black "vlad10898"]
[Result "0-1"]
[WhiteElo "2285"]
[BlackElo "2641"]
[TimeControl "180+2"]
[EndTime "13:09:08 PDT"]
[Termination "vlad10898 won by resignation"]

1. d4 {[%clk 0:02:59.4]} 1... Nf6 {[%clk 0:03:00.3]} 2. c4 {[%clk 0:02:59.3]}
2... g6 {[%clk 0:03:01.3]} 3. Nc3 {[%clk 0:03:00.4]} 3... d5 {[%clk 0:03:02.6]}
4. e3 {[%clk 0:03:00.1]} 4... Bg7 {[%clk 0:03:03.4]} 5. Nf3 {[%clk 0:03:01.3]}
5... O-O {[%clk 0:03:04.3]} 6. b4 {[%clk 0:03:02.2]} 6... c6 {[%clk 0:02:52.1]}
7. Bb2 {[%clk 0:03:01.5]} 7... a5 {[%clk 0:02:53.3]} 8. a3 {[%clk 0:02:53.8]}
8... axb4 {[%clk 0:02:39.2]} 9. axb4 {[%clk 0:02:53.4]} 9... Rxa1 {[%clk
0:02:40.6]} 10. Bxa1 {[%clk 0:02:46.7]} 10... Qb6 {[%clk 0:02:25]} 11. Qb3
{[%clk 0:02:45.6]} 11... Na6 {[%clk 0:02:24.3]} 12. b5 {[%clk 0:02:42.6]} 12...
Qa5 {[%clk 0:01:46.8]} 13. Qa4 {[%clk 0:02:13.7]} 13... Qxa4 {[%clk 0:01:39.6]}
14. Nxa4 {[%clk 0:02:14.9]} 14... Nc7 {[%clk 0:01:24]} 15. b6 {[%clk 0:01:55.8]}
15... Ne6 {[%clk 0:01:14.7]} 16. Bd3 {[%clk 0:01:33.9]} 16... dxc4 {[%clk
0:00:50.9]} 17. Bxc4 {[%clk 0:01:32.8]} 17... Nd5 {[%clk 0:00:46.2]} 18. O-O
{[%clk 0:01:30.1]} 18... Bd7 {[%clk 0:00:47.4]} 19. Nc5 {[%clk 0:01:28.6]} 19...
Nxb6 {[%clk 0:00:46.6]} 20. Nxd7 {[%clk 0:01:26.3]} 20... Nxd7 {[%clk
0:00:47.5]} 21. Bxe6 {[%clk 0:01:21.4]} 21... fxe6 {[%clk 0:00:47.7]} 22. Rb1
{[%clk 0:01:18.9]} 22... Ra8 {[%clk 0:00:43.5]} 23. Bc3 {[%clk 0:01:18.7]} 23...
b5 {[%clk 0:00:40.5]} 24. Bb4 {[%clk 0:01:17.7]} 24... Bf6 {[%clk 0:00:41.5]}
25. g4 {[%clk 0:01:11.9]} 25... g5 {[%clk 0:00:36.6]} 26. Nd2 {[%clk 0:01:04.1]}
26... Nb6 {[%clk 0:00:35.2]} 27. Ne4 {[%clk 0:01:02]} 27... Nd5 {[%clk
0:00:36.1]} 28. Be1 {[%clk 0:00:47.3]} 28... Kf7 {[%clk 0:00:36.8]} 29. Kf1
{[%clk 0:00:44.4]} 29... h6 {[%clk 0:00:36.5]} 30. Rc1 {[%clk 0:00:43.4]} 30...
Rc8 {[%clk 0:00:35.8]} 31. Rc2 {[%clk 0:00:39.1]} 31... e5 {[%clk 0:00:36.6]}
32. Nc3 {[%clk 0:00:28.2]} 32... Nxc3 {[%clk 0:00:36.6]} 33. Bxc3 {[%clk
0:00:27.2]} 33... exd4 {[%clk 0:00:37.1]} 34. Bxd4 {[%clk 0:00:27.4]} 34... Bxd4
{[%clk 0:00:37.9]} 35. exd4 {[%clk 0:00:28.9]} 35... Ke6 {[%clk 0:00:39.5]} 36.
Ke2 {[%clk 0:00:21.5]} 36... Kd6 {[%clk 0:00:37.7]} 37. Kd3 {[%clk 0:00:21.5]}
37... Ra8 {[%clk 0:00:37.9]} 38. Re2 {[%clk 0:00:20.3]} 38... Ra3+ {[%clk
0:00:37.7]} 39. Ke4 {[%clk 0:00:21.8]} 39... e6 {[%clk 0:00:35.1]} 40. f4 {[%clk
0:00:20.1]} 40... gxf4 {[%clk 0:00:36]} 41. Kxf4 {[%clk 0:00:21.1]} 41... Rh3
{[%clk 0:00:36.8]} 42. Rb2 {[%clk 0:00:16.1]} 42... Kd5 {[%clk 0:00:37.2]} 43.
Rc2 {[%clk 0:00:15.7]} 43... b4 {[%clk 0:00:38.3]} 44. Rc5+ {[%clk 0:00:16.3]}
44... Kxd4 {[%clk 0:00:39.6]} 45. Rxc6 {[%clk 0:00:17]} 45... Rxh2 {[%clk
0:00:41]} 46. Rxe6 {[%clk 0:00:16.8]} 46... b3 {[%clk 0:00:42]} 47. Rb6 {[%clk
0:00:17.7]} 47... b2 {[%clk 0:00:40.4]} 48. Kf5 {[%clk 0:00:18.3]} 48... Kc3
{[%clk 0:00:40.6]} 49. Rc6+ {[%clk 0:00:17.5]} 49... Kd2 {[%clk 0:00:41.8]} 50.
Rb6 {[%clk 0:00:17.9]} 50... Kc1 {[%clk 0:00:43.2]} 51. Kg6 {[%clk 0:00:18.2]}
51... b1=Q+ {[%clk 0:00:43.9]} 0-1

[Event "*** Titled Tuesday Blitz"]
[Site "Chess.com"]
[Date "2019.10.01"]
[Round "1"]
[White "Alex_Terzi"]
[Black "tteshan"]
[Result "1-0"]
[WhiteElo "2614"]
[BlackElo "2250"]
[TimeControl "180+2"]
[EndTime "13:09:08 PDT"]
[Termination "Alex_Terzi won by resignation"]

1. e4 {[%clk 0:02:56.9]} 1... c5 {[%clk 0:03:00.6]} 2. Nc3 {[%clk 0:02:56.2]}
2... Nc6 {[%clk 0:03:02.1]} 3. Bb5 {[%clk 0:02:55.1]} 3... g6 {[%clk 0:03:02.4]}
4. Bxc6 {[%clk 0:02:49]} 4... dxc6 {[%clk 0:03:02.4]} 5. d3 {[%clk 0:02:43.9]}
5... Bg7 {[%clk 0:03:03.9]} 6. Be3 {[%clk 0:02:44.9]} 6... b6 {[%clk 0:03:04.2]}
7. f4 {[%clk 0:02:45.6]} 7... Nf6 {[%clk 0:03:03.5]} 8. Nf3 {[%clk 0:02:46.5]}
8... O-O {[%clk 0:03:02.8]} 9. O-O {[%clk 0:02:46.2]} 9... Bg4 {[%clk
0:02:56.2]} 10. Qe1 {[%clk 0:02:46.3]} 10... Bxf3 {[%clk 0:02:56.6]} 11. Rxf3
{[%clk 0:02:46.9]} 11... Ng4 {[%clk 0:02:46.8]} 12. Bd2 {[%clk 0:02:44.8]} 12...
b5 {[%clk 0:02:21.4]} 13. h3 {[%clk 0:02:43.2]} 13... Nf6 {[%clk 0:02:22.2]} 14.
Qh4 {[%clk 0:02:40.4]} 14... Nd7 {[%clk 0:02:18.7]} 15. Raf1 {[%clk 0:02:38.5]}
15... a5 {[%clk 0:02:15.5]} 16. e5 {[%clk 0:02:25.8]} 16... e6 {[%clk
0:02:13.5]} 17. Qf2 {[%clk 0:02:21.8]} 17... Qb6 {[%clk 0:02:04.5]} 18. Ne4
{[%clk 0:02:22.3]} 18... c4 {[%clk 0:01:57.9]} 19. Be3 {[%clk 0:02:14.9]} 19...
Qc7 {[%clk 0:01:57.8]} 20. dxc4 {[%clk 0:02:11.3]} 20... bxc4 {[%clk 0:01:58.3]}
21. Nd6 {[%clk 0:02:12.3]} 21... f6 {[%clk 0:01:49.4]} 22. Nxc4 {[%clk
0:02:08.8]} 22... fxe5 {[%clk 0:01:49.9]} 23. fxe5 {[%clk 0:02:09.9]} 23... Rxf3
{[%clk 0:01:50.1]} 24. Qxf3 {[%clk 0:02:10]} 24... Nxe5 {[%clk 0:01:51.1]} 25.
Qe4 {[%clk 0:02:00.4]} 25... Nxc4 {[%clk 0:01:10.3]} 26. Qxc4 {[%clk 0:02:02.3]}
26... Qd6 {[%clk 0:01:02.1]} 27. b3 {[%clk 0:01:50.1]} 27... Qd5 {[%clk
0:01:02.6]} 28. Qh4 {[%clk 0:01:31.9]} 28... Rf8 {[%clk 0:01:00.5]} 29. Rxf8+
{[%clk 0:01:30.2]} 29... Bxf8 {[%clk 0:01:02.2]} 30. Qg4 {[%clk 0:01:18.1]}
30... Bd6 {[%clk 0:00:57.5]} 31. c4 {[%clk 0:01:12]} 31... Qd3 {[%clk
0:00:57.7]} 32. Qxe6+ {[%clk 0:01:10.7]} 32... Kg7 {[%clk 0:00:55.9]} 33. Qd7+
{[%clk 0:01:04.4]} 33... Kg8 {[%clk 0:00:51.3]} 34. Qe8+ {[%clk 0:01:01]} 34...
Kg7 {[%clk 0:00:51.6]} 35. Qd7+ {[%clk 0:00:48.6]} 35... Kg8 {[%clk 0:00:52]}
36. Qe6+ {[%clk 0:00:41.4]} 36... Kg7 {[%clk 0:00:51.8]} 37. Bf2 {[%clk
0:00:41.4]} 37... Qb1+ {[%clk 0:00:46.4]} 38. Qe1 {[%clk 0:00:39]} 38... Qd3
{[%clk 0:00:39.9]} 39. Qa1+ {[%clk 0:00:30.1]} 39... Kg8 {[%clk 0:00:38.4]} 40.
Qc1 {[%clk 0:00:24.5]} 40... Be5 {[%clk 0:00:34.7]} 41. Qe3 {[%clk 0:00:21.5]}
41... Qd1+ {[%clk 0:00:29.3]} 42. Qe1 {[%clk 0:00:22.5]} 42... Qd6 {[%clk
0:00:30.5]} 43. Qxa5 {[%clk 0:00:20.2]} 43... Kf7 {[%clk 0:00:26.8]} 44. Qe1
{[%clk 0:00:20.3]} 44... Bf4 {[%clk 0:00:22.4]} 45. Qe2 {[%clk 0:00:21.1]} 45...
Qf6 {[%clk 0:00:20.7]} 46. g3 {[%clk 0:00:18.9]} 46... Be5 {[%clk 0:00:20.3]}
47. Kg2 {[%clk 0:00:19.9]} 47... Qf5 {[%clk 0:00:20.4]} 48. Qf3 {[%clk 0:00:21]}
1-0